[Event "Early-Titled-Tuesday-Blitz-October-24-2023"]
[Site "Chess.com"]
[Date "2023.10.24"]
[Round "5"]
[White "Meri-Arabidze"]
[Black "Byniolus"]
[Result "1/2-1/2"]
[WhiteElo "2580"]
[BlackElo "2793"]
[TimeControl "180+1"]
[EndTime "8:56:03 PDT"]
[Termination "Game drawn - insufficient material"]

1. Nf3 {[%clk 0:02:56.4]} 1... d5 {[%clk 0:03:00.1]} 2. b3 {[%clk 0:02:55.7]}
2... Nf6 {[%clk 0:02:59.8]} 3. Bb2 {[%clk 0:02:55.7]} 3... Bf5 {[%clk
0:03:00.7]} 4. c4 {[%clk 0:02:52.1]} 4... c6 {[%clk 0:02:59.2]} 5. e3 {[%clk
0:02:51.5]} 5... e6 {[%clk 0:02:58.8]} 6. Be2 {[%clk 0:02:51.3]} 6... h6 {[%clk
0:02:58.4]} 7. O-O {[%clk 0:02:50.9]} 7... Nbd7 {[%clk 0:02:56.5]} 8. Nc3 {[%clk
0:02:51.1]} 8... Bd6 {[%clk 0:02:50.6]} 9. Rc1 {[%clk 0:02:43.5]} 9... O-O
{[%clk 0:02:47.9]} 10. cxd5 {[%clk 0:02:36]} 10... exd5 {[%clk 0:02:44.6]} 11.
Nd4 {[%clk 0:02:35.5]} 11... Bh7 {[%clk 0:02:42.7]} 12. f4 {[%clk 0:02:35]}
12... Nc5 {[%clk 0:02:39.4]} 13. f5 {[%clk 0:02:17.9]} 13... Re8 {[%clk
0:02:31.1]} 14. Ba3 {[%clk 0:02:06.2]} 14... Qe7 {[%clk 0:02:11.4]} 15. Qc2
{[%clk 0:01:36.6]} 15... Rac8 {[%clk 0:01:49.9]} 16. Qb1 {[%clk 0:01:15.6]}
16... a6 {[%clk 0:01:44.5]} 17. Na4 {[%clk 0:01:04.9]} 17... Nxa4 {[%clk
0:01:32.9]} 18. Bxd6 {[%clk 0:01:05.2]} 18... Qxd6 {[%clk 0:01:33.8]} 19. bxa4
{[%clk 0:01:05.7]} 19... c5 {[%clk 0:01:31.3]} 20. Nf3 {[%clk 0:01:05.9]} 20...
Rc7 {[%clk 0:01:18]} 21. a5 {[%clk 0:01:05.8]} 21... d4 {[%clk 0:01:12.9]} 22.
Bc4 {[%clk 0:00:59.2]} 22... dxe3 {[%clk 0:01:09]} 23. dxe3 {[%clk 0:01:00.1]}
23... Rxe3 {[%clk 0:01:03.6]} 24. Rfd1 {[%clk 0:00:40.1]} 24... Qe7 {[%clk
0:01:02.9]} 25. Re1 {[%clk 0:00:20.6]} 25... Kf8 {[%clk 0:00:30.4]} 26. h3
{[%clk 0:00:20.6]} 26... Qe4 {[%clk 0:00:17]} 27. Qxe4 {[%clk 0:00:19]} 27...
Rxe4 {[%clk 0:00:17.9]} 28. Rxe4 {[%clk 0:00:16.2]} 28... Nxe4 {[%clk
0:00:18.8]} 29. g4 {[%clk 0:00:16.8]} 29... h5 {[%clk 0:00:14.3]} 30. Ne5 {[%clk
0:00:14]} 30... hxg4 {[%clk 0:00:10.1]} 31. hxg4 {[%clk 0:00:14.9]} 31... f6
{[%clk 0:00:09.9]} 32. Bd5 {[%clk 0:00:11.2]} 32... fxe5 {[%clk 0:00:08]} 33.
Bxe4 {[%clk 0:00:11.3]} 33... Bg8 {[%clk 0:00:08.2]} 34. g5 {[%clk 0:00:11]}
34... Bxa2 {[%clk 0:00:07]} 35. Kf2 {[%clk 0:00:09.6]} 35... c4 {[%clk
0:00:06.9]} 36. Rh1 {[%clk 0:00:09.3]} 36... c3 {[%clk 0:00:05.6]} 37. Rh8+
{[%clk 0:00:09.2]} 37... Ke7 {[%clk 0:00:05.2]} 38. Rh7 {[%clk 0:00:07.5]} 38...
Kd6 {[%clk 0:00:05.4]} 39. f6 {[%clk 0:00:06.4]} 39... gxf6 {[%clk 0:00:06.3]}
40. Rxc7 {[%clk 0:00:03]} 40... Kxc7 {[%clk 0:00:07.2]} 41. gxf6 {[%clk
0:00:03.2]} 41... b6 {[%clk 0:00:05.8]} 42. Ke3 {[%clk 0:00:03.5]} 42... bxa5
{[%clk 0:00:05.5]} 43. Bg6 {[%clk 0:00:03.7]} 43... Bc4 {[%clk 0:00:04.5]} 44.
f7 {[%clk 0:00:02.9]} 44... Bxf7 {[%clk 0:00:03.6]} 45. Bxf7 {[%clk 0:00:03.8]}
45... Kd6 {[%clk 0:00:02.5]} 46. Kd3 {[%clk 0:00:03.9]} 46... Kc5 {[%clk
0:00:01.6]} 47. Kxc3 {[%clk 0:00:04.3]} 47... a4 {[%clk 0:00:02.5]} 48. Ba2
{[%clk 0:00:04.3]} 48... e4 {[%clk 0:00:02.5]} 49. Bb1 {[%clk 0:00:03.9]} 49...
e3 {[%clk 0:00:02.7]} 50. Kd3 {[%clk 0:00:04.1]} 50... Kb4 {[%clk 0:00:03.3]}
51. Kxe3 {[%clk 0:00:04.2]} 51... Kc3 {[%clk 0:00:04.2]} 52. Ba2 {[%clk
0:00:03.4]} 52... Kb2 {[%clk 0:00:04.3]} 53. Bd5 {[%clk 0:00:03]} 53... a3
{[%clk 0:00:05.2]} 54. Kd4 {[%clk 0:00:02.9]} 54... a5 {[%clk 0:00:04.7]} 55.
Kc5 {[%clk 0:00:02.7]} 55... a4 {[%clk 0:00:03]} 56. Kb4 {[%clk 0:00:02.9]}
56... a2 {[%clk 0:00:03.9]} 57. Bxa2 {[%clk 0:00:03.1]} 57... a3 {[%clk
0:00:04.6]} 58. Bc4 {[%clk 0:00:02.4]} 58... a2 {[%clk 0:00:05.5]} 59. Bxa2
{[%clk 0:00:02.7]} 1/2-1/2

[Event "Early-Titled-Tuesday-Blitz-October-24-2023"]
[Site "Chess.com"]
[Date "2023.10.24"]
[Round "5"]
[White "Aleksandar-Topalov"]
[Black "cristiano78"]
[Result "1/2-1/2"]
[WhiteElo "2398"]
[BlackElo "2250"]
[TimeControl "180+1"]
[EndTime "8:56:07 PDT"]
[Termination "Game drawn - insufficient material"]

1. b3 {[%clk 0:03:00.9]} 1... Nf6 {[%clk 0:02:57.3]} 2. Bb2 {[%clk 0:03:00.1]}
2... g6 {[%clk 0:02:57.9]} 3. Bxf6 {[%clk 0:02:59.6]} 3... exf6 {[%clk
0:02:57.7]} 4. c4 {[%clk 0:02:59.3]} 4... Bg7 {[%clk 0:02:58.2]} 5. Nc3 {[%clk
0:02:59.4]} 5... O-O {[%clk 0:02:58.8]} 6. e3 {[%clk 0:02:59.8]} 6... f5 {[%clk
0:02:59.5]} 7. Nge2 {[%clk 0:02:59.5]} 7... d6 {[%clk 0:02:54.2]} 8. g3 {[%clk
0:02:59.4]} 8... Nc6 {[%clk 0:02:54.7]} 9. d4 {[%clk 0:02:58.8]} 9... Bd7 {[%clk
0:02:50.4]} 10. Bg2 {[%clk 0:02:58.4]} 10... h5 {[%clk 0:02:50.2]} 11. O-O
{[%clk 0:02:57.8]} 11... h4 {[%clk 0:02:49.4]} 12. Rb1 {[%clk 0:02:58.1]} 12...
a5 {[%clk 0:02:48.8]} 13. a3 {[%clk 0:02:57.7]} 13... hxg3 {[%clk 0:02:46.9]}
14. hxg3 {[%clk 0:02:58.6]} 14... b6 {[%clk 0:02:40.3]} 15. b4 {[%clk
0:02:57.2]} 15... axb4 {[%clk 0:02:40.5]} 16. axb4 {[%clk 0:02:57.7]} 16... Ra7
{[%clk 0:02:25]} 17. Nf4 {[%clk 0:02:56.2]} 17... Ne7 {[%clk 0:02:23.5]} 18. Nb5
{[%clk 0:02:55.1]} 18... Ra2 {[%clk 0:02:09.3]} 19. Ra1 {[%clk 0:02:53.9]} 19...
Rxa1 {[%clk 0:02:08.9]} 20. Qxa1 {[%clk 0:02:53.8]} 20... g5 {[%clk 0:02:05.9]}
21. Nd3 {[%clk 0:02:36]} 21... Nc8 {[%clk 0:01:59.2]} 22. Qa8 {[%clk 0:02:23.7]}
22... Bxb5 {[%clk 0:01:46.7]} 23. cxb5 {[%clk 0:02:22.6]} 23... Ne7 {[%clk
0:01:47.5]} 24. Qxd8 {[%clk 0:02:15.1]} 24... Rxd8 {[%clk 0:01:48.4]} 25. Rc1
{[%clk 0:02:14.9]} 25... Rd7 {[%clk 0:01:42.8]} 26. Ra1 {[%clk 0:02:11.3]} 26...
Kh7 {[%clk 0:01:42]} 27. Ra8 {[%clk 0:02:10.2]} 27... Ng8 {[%clk 0:01:39.1]} 28.
g4 {[%clk 0:01:51.6]} 28... fxg4 {[%clk 0:01:33.7]} 29. Be4+ {[%clk 0:01:51.2]}
29... Kh8 {[%clk 0:01:22.5]} 30. Bf5 {[%clk 0:01:41.2]} 30... Re7 {[%clk
0:01:21.2]} 31. Bxg4 {[%clk 0:01:41.2]} 31... Bf6 {[%clk 0:01:17.8]} 32. Kg2
{[%clk 0:01:03.2]} 32... Kg7 {[%clk 0:01:17.1]} 33. Nc1 {[%clk 0:00:55.4]} 33...
Bxd4 {[%clk 0:01:03.6]} 34. exd4 {[%clk 0:00:52.4]} 34... Re4 {[%clk 0:01:03.4]}
35. Bf3 {[%clk 0:00:33.6]} 35... Rxd4 {[%clk 0:01:02.9]} 36. Rc8 {[%clk
0:00:31.4]} 36... Rxb4 {[%clk 0:00:55.4]} 37. Rxc7 {[%clk 0:00:30.8]} 37... Rxb5
{[%clk 0:00:54.2]} 38. Ne2 {[%clk 0:00:25.4]} 38... Rc5 {[%clk 0:00:48.8]} 39.
Rb7 {[%clk 0:00:20.9]} 39... Rb5 {[%clk 0:00:41.8]} 40. Nd4 {[%clk 0:00:20.1]}
40... Rb2 {[%clk 0:00:33.8]} 41. Nf5+ {[%clk 0:00:20.1]} 41... Kf6 {[%clk
0:00:33.1]} 42. Nxd6 {[%clk 0:00:20.2]} 42... Nh6 {[%clk 0:00:23]} 43. Nc4
{[%clk 0:00:20.4]} 43... Rb4 {[%clk 0:00:19.9]} 44. Rxb6+ {[%clk 0:00:20.3]}
44... Rxb6 {[%clk 0:00:18.6]} 45. Nxb6 {[%clk 0:00:20.7]} 45... Ke5 {[%clk
0:00:18.8]} 46. Nd7+ {[%clk 0:00:19.5]} 46... Kf4 {[%clk 0:00:18.5]} 47. Nf6
{[%clk 0:00:18.3]} 47... g4 {[%clk 0:00:17.3]} 48. Bc6 {[%clk 0:00:17.1]} 48...
Kg5 {[%clk 0:00:16.9]} 49. Ne4+ {[%clk 0:00:15.9]} 49... Kf4 {[%clk 0:00:17]}
50. Ng3 {[%clk 0:00:16.3]} 50... f5 {[%clk 0:00:16.9]} 51. Bd7 {[%clk 0:00:16]}
51... Kg5 {[%clk 0:00:16.1]} 52. Ne2 {[%clk 0:00:14.1]} 52... f4 {[%clk
0:00:15.9]} 53. f3 {[%clk 0:00:13.5]} 53... gxf3+ {[%clk 0:00:13.1]} 54. Kxf3
{[%clk 0:00:13.8]} 54... Ng8 {[%clk 0:00:10.5]} 55. Nxf4 {[%clk 0:00:14.2]}
55... Nf6 {[%clk 0:00:10.2]} 56. Be6 {[%clk 0:00:14]} 56... Kh6 {[%clk
0:00:09.6]} 57. Nd3 {[%clk 0:00:13.9]} 57... Kg7 {[%clk 0:00:09.2]} 58. Kf4
{[%clk 0:00:14.4]} 58... Kf8 {[%clk 0:00:09.7]} 59. Kf5 {[%clk 0:00:14.7]} 59...
Ke7 {[%clk 0:00:09.5]} 60. Ne5 {[%clk 0:00:14.6]} 60... Ne8 {[%clk 0:00:08.9]}
61. Ng6+ {[%clk 0:00:14.5]} 61... Kd6 {[%clk 0:00:07.9]} 62. Bf7 {[%clk
0:00:15.1]} 62... Nc7 {[%clk 0:00:07.9]} 63. Kf6 {[%clk 0:00:15.3]} 63... Nd5+
{[%clk 0:00:07.6]} 64. Kf5 {[%clk 0:00:15.7]} 64... Ne7+ {[%clk 0:00:07.1]} 65.
Nxe7 {[%clk 0:00:12.4]} 65... Kxe7 {[%clk 0:00:08]} 1/2-1/2

[Event "Early-Titled-Tuesday-Blitz-October-24-2023"]
[Site "Chess.com"]
[Date "2023.10.24"]
[Round "5"]
[White "abhidabhi"]
[Black "Jospem"]
[Result "1/2-1/2"]
[WhiteElo "2900"]
[BlackElo "3135"]
[TimeControl "180+1"]
[EndTime "8:56:08 PDT"]
[Termination "Game drawn - insufficient material"]

1. e4 {[%clk 0:02:40.1]} 1... c5 {[%clk 0:02:59.5]} 2. Nf3 {[%clk 0:02:38.9]}
2... d6 {[%clk 0:03:00.1]} 3. d4 {[%clk 0:02:37.7]} 3... cxd4 {[%clk 0:03:01]}
4. Nxd4 {[%clk 0:02:38.6]} 4... a6 {[%clk 0:03:01.9]} 5. Nc3 {[%clk 0:02:38.5]}
5... e6 {[%clk 0:03:02.2]} 6. Be3 {[%clk 0:02:37.1]} 6... b5 {[%clk 0:03:02.1]}
7. Qd2 {[%clk 0:02:36.2]} 7... Nf6 {[%clk 0:03:02]} 8. f3 {[%clk 0:02:36.3]}
8... Nbd7 {[%clk 0:03:02.5]} 9. O-O-O {[%clk 0:02:35.7]} 9... h5 {[%clk
0:03:02.4]} 10. Kb1 {[%clk 0:02:34.7]} 10... Bb7 {[%clk 0:03:02.5]} 11. h3
{[%clk 0:02:28]} 11... Be7 {[%clk 0:03:00.9]} 12. Be2 {[%clk 0:02:21.9]} 12...
h4 {[%clk 0:03:00.7]} 13. Bg5 {[%clk 0:02:20.6]} 13... b4 {[%clk 0:02:38.9]} 14.
Na4 {[%clk 0:02:19]} 14... Qa5 {[%clk 0:02:39.1]} 15. Bxf6 {[%clk 0:02:07.2]}
15... Nxf6 {[%clk 0:02:00.8]} 16. b3 {[%clk 0:02:07]} 16... d5 {[%clk
0:02:01.2]} 17. e5 {[%clk 0:01:59.9]} 17... Nd7 {[%clk 0:02:01.4]} 18. f4 {[%clk
0:02:00.3]} 18... g6 {[%clk 0:02:01.8]} 19. c4 {[%clk 0:01:51]} 19... bxc3
{[%clk 0:01:51.8]} 20. Qxc3 {[%clk 0:01:51.2]} 20... Bb4 {[%clk 0:01:39.9]} 21.
Qb2 {[%clk 0:01:43.1]} 21... O-O {[%clk 0:01:38.8]} 22. Bg4 {[%clk 0:01:32.6]}
22... Rfe8 {[%clk 0:01:37.9]} 23. Rhf1 {[%clk 0:01:21.6]} 23... Nb6 {[%clk
0:01:38]} 24. Nxb6 {[%clk 0:01:19.6]} 24... Qxb6 {[%clk 0:01:38.9]} 25. f5
{[%clk 0:01:15.1]} 25... exf5 {[%clk 0:01:35.9]} 26. Nxf5 {[%clk 0:01:05.5]}
26... gxf5 {[%clk 0:01:27.2]} 27. Rxf5 {[%clk 0:01:03]} 27... d4 {[%clk
0:01:22.8]} 28. Rxd4 {[%clk 0:00:58.4]} 28... Rad8 {[%clk 0:01:16.9]} 29. e6
{[%clk 0:00:39.2]} 29... Rxd4 {[%clk 0:00:58.1]} 30. exf7+ {[%clk 0:00:39.1]}
30... Kf8 {[%clk 0:00:58.8]} 31. fxe8=Q+ {[%clk 0:00:33]} 31... Kxe8 {[%clk
0:00:59.7]} 32. Re5+ {[%clk 0:00:23.2]} 32... Kd8 {[%clk 0:00:58.2]} 33. Qe2
{[%clk 0:00:20.9]} 33... Qc6 {[%clk 0:00:39.4]} 34. Re6 {[%clk 0:00:19.3]} 34...
Qe4+ {[%clk 0:00:20.4]} 35. Rxe4 {[%clk 0:00:18.8]} 35... Bxe4+ {[%clk
0:00:21.3]} 36. Kb2 {[%clk 0:00:16.9]} 36... Rd2+ {[%clk 0:00:21.7]} 37. Qxd2+
{[%clk 0:00:17]} 37... Bxd2 {[%clk 0:00:22.6]} 38. Bf3 {[%clk 0:00:17]} 38...
Bd3 {[%clk 0:00:19.5]} 39. a3 {[%clk 0:00:14]} 39... Kc7 {[%clk 0:00:19.2]} 40.
b4 {[%clk 0:00:14.2]} 40... Kd6 {[%clk 0:00:19.8]} 41. Kb3 {[%clk 0:00:14.2]}
41... Ke5 {[%clk 0:00:20.3]} 42. a4 {[%clk 0:00:14.7]} 42... Kf4 {[%clk
0:00:19]} 43. Bb7 {[%clk 0:00:13.6]} 43... Kg3 {[%clk 0:00:19.1]} 44. a5 {[%clk
0:00:12.4]} 44... Be1 {[%clk 0:00:17.6]} 45. Ka4 {[%clk 0:00:11.7]} 45... Bb5+
{[%clk 0:00:17.5]} 46. Ka3 {[%clk 0:00:12.1]} 46... Bf1 {[%clk 0:00:18.4]} 47.
Ka4 {[%clk 0:00:11.2]} 47... Bd2 {[%clk 0:00:18.8]} 48. Ka3 {[%clk 0:00:08.5]}
48... Bxg2 {[%clk 0:00:17]} 49. Bxa6 {[%clk 0:00:08]} 49... Kxh3 {[%clk
0:00:15.7]} 50. Bc8+ {[%clk 0:00:07.3]} 50... Kg3 {[%clk 0:00:16.3]} 51. Ka4
{[%clk 0:00:07.6]} 51... Be4 {[%clk 0:00:09.8]} 52. a6 {[%clk 0:00:06.8]} 52...
Be3 {[%clk 0:00:09.4]} 53. Ka5 {[%clk 0:00:06.2]} 53... Bd4 {[%clk 0:00:03.8]}
54. b5 {[%clk 0:00:06]} 54... Bd5 {[%clk 0:00:04.6]} 55. b6 {[%clk 0:00:05.4]}
55... Bc3+ {[%clk 0:00:05.3]} 56. Kb5 {[%clk 0:00:05.4]} 56... Bd4 {[%clk
0:00:05.5]} 57. a7 {[%clk 0:00:05.1]} 57... Bxb6 {[%clk 0:00:06]} 58. Kxb6
{[%clk 0:00:05.3]} 58... h3 {[%clk 0:00:06.8]} 59. Bb7 {[%clk 0:00:03.9]} 59...
Bxb7 {[%clk 0:00:07]} 60. Kxb7 {[%clk 0:00:04.8]} 60... h2 {[%clk 0:00:07.7]}
61. a8=Q {[%clk 0:00:05.6]} 61... h1=Q+ {[%clk 0:00:08.6]} 62. Kb8 {[%clk
0:00:06.2]} 62... Qxa8+ {[%clk 0:00:09.5]} 63. Kxa8 {[%clk 0:00:07.1]} 1/2-1/2

[Event "Early-Titled-Tuesday-Blitz-October-24-2023"]
[Site "Chess.com"]
[Date "2023.10.24"]
[Round "5"]
[White "Legendinunknown"]
[Black "ProfessorChess101"]
[Result "1-0"]
[WhiteElo "2794"]
[BlackElo "2540"]
[TimeControl "180+1"]
[EndTime "8:56:09 PDT"]
[Termination "Legendinunknown won by resignation"]

1. d4 {[%clk 0:02:53.4]} 1... Nf6 {[%clk 0:02:55.9]} 2. c4 {[%clk 0:02:51]} 2...
e6 {[%clk 0:02:56.1]} 3. Nc3 {[%clk 0:02:50.9]} 3... d5 {[%clk 0:02:54.9]} 4.
cxd5 {[%clk 0:02:50.4]} 4... exd5 {[%clk 0:02:52.5]} 5. Bg5 {[%clk 0:02:49.9]}
5... c6 {[%clk 0:02:52.6]} 6. e3 {[%clk 0:02:49.8]} 6... Be7 {[%clk 0:02:51.8]}
7. Bd3 {[%clk 0:02:49.5]} 7... Nbd7 {[%clk 0:02:52.2]} 8. Nge2 {[%clk 0:02:49]}
8... Nf8 {[%clk 0:02:52.7]} 9. Qc2 {[%clk 0:02:43.5]} 9... Ne6 {[%clk
0:02:51.6]} 10. Bh4 {[%clk 0:02:41.5]} 10... g6 {[%clk 0:02:51.5]} 11. Nf4
{[%clk 0:02:35.3]} 11... Nxf4 {[%clk 0:02:49.8]} 12. exf4 {[%clk 0:02:36.2]}
12... Nh5 {[%clk 0:02:32.3]} 13. Bg3 {[%clk 0:02:34.9]} 13... Ng7 {[%clk
0:02:29]} 14. f3 {[%clk 0:02:27.2]} 14... Bf6 {[%clk 0:02:25.4]} 15. Bf2 {[%clk
0:02:25.7]} 15... Qe7+ {[%clk 0:02:25.1]} 16. Ne2 {[%clk 0:02:21.6]} 16... Bf5
{[%clk 0:02:23.9]} 17. O-O-O {[%clk 0:02:17.8]} 17... O-O-O {[%clk 0:02:14]} 18.
g4 {[%clk 0:02:15.7]} 18... Bxd3 {[%clk 0:02:12.8]} 19. Rxd3 {[%clk 0:02:16.6]}
19... Bh4 {[%clk 0:01:49.9]} 20. Re3 {[%clk 0:02:05.8]} 20... Qf6 {[%clk
0:01:42.3]} 21. g5 {[%clk 0:01:59.5]} 21... Qd6 {[%clk 0:01:36.4]} 22. Bxh4
{[%clk 0:01:55.1]} 22... Nf5 {[%clk 0:01:34.2]} 23. Bf2 {[%clk 0:01:53.6]} 23...
Nxe3 {[%clk 0:01:34.3]} 24. Bxe3 {[%clk 0:01:54.5]} 24... Rhe8 {[%clk 0:01:34]}
25. Bf2 {[%clk 0:01:53.5]} 25... Qe6 {[%clk 0:01:29.2]} 26. Ng3 {[%clk
0:01:40.9]} 26... Qh3 {[%clk 0:01:21.7]} 27. Be1 {[%clk 0:01:19.9]} 27... Re3
{[%clk 0:01:15.1]} 28. Qf2 {[%clk 0:01:18.3]} 28... Rde8 {[%clk 0:01:10.5]} 29.
Bd2 {[%clk 0:01:17.8]} 29... R3e7 {[%clk 0:01:07.5]} 30. Re1 {[%clk 0:01:16.4]}
30... Rxe1+ {[%clk 0:01:06.5]} 31. Bxe1 {[%clk 0:01:17.3]} 31... h5 {[%clk
0:00:51.7]} 32. Bc3 {[%clk 0:00:46.6]} 32... h4 {[%clk 0:00:50.6]} 33. Ne2
{[%clk 0:00:45.7]} 33... Qf5 {[%clk 0:00:45.1]} 34. Kd2 {[%clk 0:00:45]} 34...
Qb1 {[%clk 0:00:30.7]} 35. Nc1 {[%clk 0:00:43]} 35... b5 {[%clk 0:00:22.8]} 36.
a3 {[%clk 0:00:39.2]} 36... a5 {[%clk 0:00:20.7]} 37. Nd3 {[%clk 0:00:36.8]}
37... Qh1 {[%clk 0:00:14.6]} 38. Ne5 {[%clk 0:00:32.5]} 38... h3 {[%clk
0:00:14.5]} 39. Bxa5 {[%clk 0:00:28.6]} 39... Qg2 {[%clk 0:00:13.4]} 40. Ke3
{[%clk 0:00:27.5]} 40... Qh1 {[%clk 0:00:12]} 41. Kd2 {[%clk 0:00:21.2]} 41...
Kb7 {[%clk 0:00:06.9]} 42. Bb4 {[%clk 0:00:16.3]} 42... Qg2 {[%clk 0:00:06.7]}
43. Ke2 {[%clk 0:00:15.6]} 43... Qh1 {[%clk 0:00:07.2]} 44. Be1 {[%clk
0:00:15.7]} 44... Re6 {[%clk 0:00:04.2]} 45. Qg3 {[%clk 0:00:15.7]} 45... Qg2+
{[%clk 0:00:02.7]} 46. Qxg2 {[%clk 0:00:15.5]} 46... hxg2 {[%clk 0:00:03.6]} 47.
Kf2 {[%clk 0:00:16.2]} 47... f6 {[%clk 0:00:04.3]} 48. gxf6 {[%clk 0:00:15.2]}
48... Rxf6 {[%clk 0:00:05.2]} 49. Bd2 {[%clk 0:00:15.5]} 49... Kb6 {[%clk
0:00:03.7]} 50. b4 {[%clk 0:00:13.9]} 50... Rf5 {[%clk 0:00:03.2]} 51. Kxg2
{[%clk 0:00:14.3]} 51... Kc7 {[%clk 0:00:03.5]} 52. Kg3 {[%clk 0:00:14.6]} 52...
Rf6 {[%clk 0:00:03.1]} 53. h4 {[%clk 0:00:15]} 53... Kd6 {[%clk 0:00:03.2]} 54.
Kg4 {[%clk 0:00:15.9]} 54... Ke6 {[%clk 0:00:04.1]} 55. Kg5 {[%clk 0:00:16.5]}
55... Rf8 {[%clk 0:00:03.3]} 56. Nxg6 {[%clk 0:00:16.3]} 56... Rf5+ {[%clk
0:00:03.5]} 57. Kg4 {[%clk 0:00:16.8]} 57... Rf7 {[%clk 0:00:04.3]} 58. h5
{[%clk 0:00:16.9]} 58... Ra7 {[%clk 0:00:04.4]} 59. f5+ {[%clk 0:00:16.2]} 59...
Kf6 {[%clk 0:00:05]} 60. Bg5+ {[%clk 0:00:16.4]} 60... Kg7 {[%clk 0:00:05.9]}
61. h6+ {[%clk 0:00:17]} 61... Kh7 {[%clk 0:00:06.3]} 62. Nf8+ {[%clk 0:00:17]}
62... Kg8 {[%clk 0:00:06.6]} 63. h7+ {[%clk 0:00:17.6]} 63... Kg7 {[%clk
0:00:03.6]} 64. Bf6+ {[%clk 0:00:16.5]} 1-0

[Event "Early-Titled-Tuesday-Blitz-October-24-2023"]
[Site "Chess.com"]
[Date "2023.10.24"]
[Round "5"]
[White "zverr1"]
[Black "Rodalquilar"]
[Result "0-1"]
[WhiteElo "2508"]
[BlackElo "2750"]
[TimeControl "180+1"]
[EndTime "8:56:09 PDT"]
[Termination "Rodalquilar won by resignation"]

1. e4 {[%clk 0:03:00.9]} 1... d5 {[%clk 0:02:12.5]} 2. exd5 {[%clk 0:03:01.8]}
2... Qxd5 {[%clk 0:02:12.2]} 3. Nc3 {[%clk 0:03:02]} 3... Qa5 {[%clk 0:02:12.1]}
4. d4 {[%clk 0:03:02.7]} 4... Nf6 {[%clk 0:02:12.4]} 5. Nf3 {[%clk 0:03:02.7]}
5... Bf5 {[%clk 0:02:12.5]} 6. Ne5 {[%clk 0:02:49.5]} 6... c6 {[%clk 0:02:12.2]}
7. Bf4 {[%clk 0:02:44]} 7... Nbd7 {[%clk 0:02:05.8]} 8. Nc4 {[%clk 0:02:39.3]}
8... Qd8 {[%clk 0:02:05.9]} 9. Bd3 {[%clk 0:02:29.7]} 9... Bxd3 {[%clk 0:02:03]}
10. Qxd3 {[%clk 0:02:30.6]} 10... Nb6 {[%clk 0:02:02.7]} 11. O-O-O {[%clk
0:02:26]} 11... e6 {[%clk 0:01:57.6]} 12. f3 {[%clk 0:02:09.5]} 12... Nxc4
{[%clk 0:01:51.7]} 13. Qxc4 {[%clk 0:02:09.7]} 13... Bd6 {[%clk 0:01:52]} 14.
Bg5 {[%clk 0:02:04.8]} 14... Qc7 {[%clk 0:01:51.9]} 15. Kb1 {[%clk 0:01:59.2]}
15... O-O-O {[%clk 0:01:49.1]} 16. g3 {[%clk 0:01:47.7]} 16... h6 {[%clk
0:01:45.7]} 17. Bxf6 {[%clk 0:01:38.1]} 17... gxf6 {[%clk 0:01:46.6]} 18. Ne4
{[%clk 0:01:38.3]} 18... Be7 {[%clk 0:01:46.7]} 19. Nc5 {[%clk 0:01:35]} 19...
Rd5 {[%clk 0:01:43.4]} 20. Nd3 {[%clk 0:01:19.3]} 20... Rhd8 {[%clk 0:01:40.8]}
21. Nf4 {[%clk 0:01:18.5]} 21... Rb5 {[%clk 0:01:37.8]} 22. Ka1 {[%clk
0:01:07.5]} 22... Qb6 {[%clk 0:01:34.3]} 23. Qc3 {[%clk 0:00:49.4]} 23... Bb4
{[%clk 0:01:22]} 24. Qc4 {[%clk 0:00:46.9]} 24... Be7 {[%clk 0:00:58.8]} 25. Qc3
{[%clk 0:00:46]} 25... Rb4 {[%clk 0:00:59.2]} 26. Ne2 {[%clk 0:00:42.1]} 26...
Ra4 {[%clk 0:00:48.5]} 27. Rd3 {[%clk 0:00:32.3]} 27... Qa6 {[%clk 0:00:44.9]}
28. a3 {[%clk 0:00:28.8]} 28... b5 {[%clk 0:00:39.9]} 29. Nc1 {[%clk 0:00:07.6]}
29... b4 {[%clk 0:00:39.2]} 30. Qd2 {[%clk 0:00:04.2]} 30... h5 {[%clk
0:00:23.1]} 31. Rd1 {[%clk 0:00:02.8]} 31... Rd5 {[%clk 0:00:23.2]} 32. Re3
{[%clk 0:00:02.8]} 32... Bc5 {[%clk 0:00:14.9]} 33. Qd3 {[%clk 0:00:02.7]} 33...
Rxd4 {[%clk 0:00:12.7]} 34. Qxa6+ {[%clk 0:00:02.6]} 34... Rxa6 {[%clk
0:00:13.6]} 35. Rxd4 {[%clk 0:00:02.2]} 35... Bxd4 {[%clk 0:00:14.1]} 36. Rd3
{[%clk 0:00:02.2]} 36... Rxa3+ {[%clk 0:00:14.2]} 37. Rxa3 {[%clk 0:00:01.7]}
37... bxa3 {[%clk 0:00:14.7]} 38. c3 {[%clk 0:00:01.9]} 38... axb2+ {[%clk
0:00:14.1]} 39. Kxb2 {[%clk 0:00:02.8]} 39... Bg1 {[%clk 0:00:14.2]} 40. h3
{[%clk 0:00:03.1]} 40... Bf2 {[%clk 0:00:12.2]} 41. g4 {[%clk 0:00:03.3]} 41...
h4 {[%clk 0:00:12.2]} 42. Nd3 {[%clk 0:00:03.4]} 42... Bg3 {[%clk 0:00:11.9]}
43. Nc5 {[%clk 0:00:02.1]} 43... Kc7 {[%clk 0:00:11.4]} 44. Kc2 {[%clk
0:00:01.8]} 44... Kd6 {[%clk 0:00:09.1]} 45. Ne4+ {[%clk 0:00:02.4]} 45... Ke7
{[%clk 0:00:09.6]} 46. Kd3 {[%clk 0:00:03.3]} 46... a5 {[%clk 0:00:08.2]} 47.
Kc4 {[%clk 0:00:03.6]} 47... Bd6 {[%clk 0:00:08.5]} 48. Kb3 {[%clk 0:00:02.8]}
48... Bc7 {[%clk 0:00:06.3]} 49. Ka4 {[%clk 0:00:03]} 49... Bb6 {[%clk
0:00:06.8]} 50. c4 {[%clk 0:00:02.2]} 50... f5 {[%clk 0:00:06.6]} 51. Nc3 {[%clk
0:00:01.2]} 51... fxg4 {[%clk 0:00:05.2]} 52. fxg4 {[%clk 0:00:02.1]} 52... f5
{[%clk 0:00:05.2]} 53. gxf5 {[%clk 0:00:01.5]} 53... exf5 {[%clk 0:00:05.8]} 54.
c5 {[%clk 0:00:02]} 54... Bxc5 {[%clk 0:00:05]} 55. Kxa5 {[%clk 0:00:02.8]}
55... f4 {[%clk 0:00:05]} 56. Ne4 {[%clk 0:00:02.1]} 56... f3 {[%clk 0:00:04.4]}
57. Nxc5 {[%clk 0:00:01.9]} 57... f2 {[%clk 0:00:05]} 58. Kb6 {[%clk 0:00:02]}
58... f1=Q {[%clk 0:00:05.3]} 59. Kxc6 {[%clk 0:00:02.9]} 59... Qxh3 {[%clk
0:00:05.4]} 60. Kd5 {[%clk 0:00:03.8]} 60... Qf5+ {[%clk 0:00:05.5]} 61. Kd4
{[%clk 0:00:04]} 61... Qxc5+ {[%clk 0:00:05.9]} 62. Kxc5 {[%clk 0:00:04.9]}
62... h3 {[%clk 0:00:06.5]} 0-1